[Event "46th GRE-chT Premier 2018"]
[Site "Rio Achaia"]
[Date "2018.07.10"]
[Round "1"]
[White "Patriki, Alexandra"]
[Black "Strati, Betty - Anna"]
[Result "0-1"]
[ECO "D02"]
[WhiteElo "1355"]
[BlackElo "1631"]
[Annotator "NA"]
[PlyCount "170"]
[EventDate "2018.07.10"]
[EventType "team-tourn"]
[EventCountry "GRE"]
[SourceTitle "playchess.com"]
[Source "ChessBase"]
[SourceQuality "1"]
[TimeControl "40/5400+30:1800+30"]

1. d4 {[%emt 0:00:00]} d5 {[%emt 0:00:00]} 2. Nf3 {[%emt 0:00:00]} Nf6 {[%emt 0:00:00]} 3. c3 {[%emt 0:00:00]} c5 {[%emt 0:00:05]} 4. e3 {[%emt 0:00:13]} Nc6 {[%emt 0:01:02]} 5. Bd3 {[%emt 0:00:54]} e6 {[%emt 0:03:16]} 6. Nbd2 {[%emt 0:01:43]} Be7 {[%emt 0:02:44]} 7. dxc5 {[%emt 0:02:19]} Bxc5 {[%emt 0:04:05]} 8. O-O {[%emt 0:03:48]} O-O {[%emt 0:02:11]} 9. e4 {[%emt 0:05:39]} Qc7 {[%emt 0:25:36]} 10. Qc2 {[%emt 0:13:29]} b6 {[%emt 0:09:34]} 11. h3 {[%emt 0:19:57]} Bb7 {[%emt 0:07:07]} 12. exd5 {[%emt 0:15:58]} exd5 {[%emt 0:00:22]} 13. Nb3 {[%emt 0:07:23]} h6 {[%emt 0:07:33]} 14. Nxc5 {[%emt 0:04:21]} bxc5 {[%emt 0:00:06]} 15. Qd1 {[%emt 0:02:10]} Rfe8 {[%emt 0:03:54]} 16. Be3 {[%emt 0:05:15]} Ne4 {[%emt 0:05:34]} 17. Nh2 {[%emt 0:05:11]} Ne5 {[%emt 0:06:57]} 18. Bf4 {[%emt 0:04:10]} Qe7 {[%emt 0:02:46]} 19. Bb5 {[%emt 0:01:51]} Red8 {[%emt 0:00:18]} 20. Re1 {[%emt 0:01:28]} f6 {[%emt 0:02:41]} 21. Qe2 {[%emt 0:02:11]} g5 {[%emt 0:04:22]} 22. Bxe5 {[%emt 0:00:49]} fxe5 {[%emt 0:00:09]} 23. Ba4 {[%emt 0:00:57]} c4 {[%emt 0:01:23]} 24. Bc2 {[%emt 0:00:37]} Rac8 {[%emt 0:04:04]} 25. f3 {[%emt 0:00:52]} Qc5+ {[%emt 0:00:40]} 26. Qe3 {[%emt 0:00:50]} d4 {[%emt 0:01:17]} 27. cxd4 {[%emt 0:00:05]} exd4 {[%emt 0:00:05]} 28. Qa3 {[%emt 0:00:36]} Qxa3 {[%emt 0:02:11]} 29. bxa3 {[%emt 0:00:05]} Nc5 {[%emt 0:00:53]} 30. Bf5 {[%emt 0:00:41]} Rb8 {[%emt 0:00:19]} 31. Rac1 {[%emt 0:00:32]} Nd3 {[%emt 0:02:02]} 32. Bxd3 {[%emt 0:00:45]} cxd3 {[%emt 0:00:01]} 33. Rcd1 {[%emt 0:00:41]} Ba6 {[%emt 0:00:32]} 34. Ng4 {[%emt 0:00:27]} Rb6 {[%emt 0:01:49]} 35. Ne5 {[%emt 0:00:19]} Rb2 {[%emt 0:00:51]} 36. Nxd3 {[%emt 0:00:21]} Rxa2 {[%emt 0:00:20]} 37. Nb4 {[%emt 0:00:54]} Rxa3 {[%emt 0:00:19]} 38. Nc6 {[%emt 0:00:17]} Rd6 {[%emt 0:01:06]} 39. Nxd4 {[%emt 0:00:28]} Rd3 {[%emt 0:00:21]} 40. Rxd3 {[%emt 0:00:00]} Bxd3 {[%emt 0:00:00]} 41. Nb3 {[%emt 0:07:30]} Bc2 {[%emt 0:04:31]} 42. Nc5 {[%emt 0:03:10]} Rd1 {[%emt 0:02:56]} 43. Rxd1 {[%emt 0:02:49]} Bxd1 {[%emt 0:00:06]} 44. Nb7 {[%emt 0:01:45]} Kf7 {[%emt 0:02:23]} 45. Kf2 {[%emt 0:01:05]} Bb3 {[%emt 0:03:22]} 46. Kg3 {[%emt 0:09:02]} Bd5 {[%emt 0:03:22]} 47. Nc5 {[%emt 0:01:44]} a5 {[%emt 0:02:25]} 48. h4 {[%emt 0:06:24]} Kg6 {[%emt 0:07:32]} 49. hxg5 {[%emt 0:00:39]} Kxg5 {[%emt 0:01:35]} 50. Kf2 {[%emt 0:00:40]} Bc6 {[%emt 0:01:56]} 51. Nb3 {[%emt 0:00:43]} a4 {[%emt 0:00:27]} 52. Na1 {[%emt 0:00:13]} a3 {[%emt 0:02:56]} 53. g3 {[%emt 0:00:39]} a2 {[%emt 0:00:41]} 54. Ke3 {[%emt 0:00:39]} Kf5 {[%emt 0:01:04]} 55. Kf2 {[%emt 0:00:42]} Ke5 {[%emt 0:00:59]} 56. Ke3 {[%emt 0:00:21]} Kd5 {[%emt 0:01:35]} 57. f4 {[%emt 0:01:05]} Kc4 {[%emt 0:00:57]} 58. Kd2 {[%emt 0:00:37]} Bd7 {[%emt 0:00:52]} 59. Kc2 {[%emt 0:00:27]} Be6 {[%emt 0:00:27]} 60. Kb2 {[%emt 0:00:25]} Kd4 {[%emt 0:00:18]} 61. Nc2+ {[%emt 0:00:33]} Ke4 {[%emt 0:00:29]} 62. Ne1 {[%emt 0:00:58]} Kf5 {[%emt 0:00:34]} 63. Nc2 {[%emt 0:00:31]} Kg4 {[%emt 0:00:28]} 64. Nd4 {[%emt 0:00:05]} Bc4 {[%emt 0:00:36]} 65. f5 {[%emt 0:00:33]} Kxg3 {[%emt 0:00:31]} 66. f6 {[%emt 0:00:24]} Kg4 {[%emt 0:00:18]} 67. Nc2 {[%emt 0:00:53]} Kg5 {[%emt 0:00:54]} 68. Ne3 {[%emt 0:00:35]} Bf7 {[%emt 0:00:30]} 69. Ka1 {[%emt 0:00:31]} h5 {[%emt 0:00:33]} 70. Ng2 {[%emt 0:00:30]} Kxf6 {[%emt 0:00:31]} 71. Nf4 {[%emt 0:00:19]} h4 {[%emt 0:00:12]} 72. Ng2 {[%emt 0:00:06]} h3 {[%emt 0:00:17]} 73. Ne3 {[%emt 0:00:34]} Kg5 {[%emt 0:00:42]} 74. Nf1 {[%emt 0:00:59]} Kf4 {[%emt 0:00:34]} 75. Kb2 {[%emt 0:00:14]} Kf3 {[%emt 0:00:46]} 76. Nh2+ {[%emt 0:00:19]} Kg2 {[%emt 0:00:30]} 77. Ng4 {[%emt 0:00:22]} Kg3 {[%emt 0:00:27]} 78. Ne3 {[%emt 0:00:08]} Kf3 {[%emt 0:00:27]} 79. Nf1 {[%emt 0:00:23]} Be6 {[%emt 0:00:31]} 80. Ka1 {[%emt 0:01:00]} Kf2 {[%emt 0:00:29]} 81. Nd2 {[%emt 0:00:40]} h2 {[%emt 0:00:25]} 82. Ne4+ {[%emt 0:00:20]} Kg2 {[%emt 0:00:23]} 83. Kb2 {[%emt 0:01:02]} h1=Q {[%emt 0:00:19]} 84. Kc2 {[%emt 0:00:30]} Qb1+ {[%emt 0:00:17]} 85. Kd2 {[%emt 0:00:11]} Qxe4 {[%emt 0:00:11]} 0-1

[Event "46th GRE-chT Premier 2018"]
[Site "Rio Achaia"]
[Date "2018.07.10"]
[Round "1"]
[White "Kyriakidis, Anastasios P"]
[Black "Paraskevas, Georgios"]
[Result "1-0"]
[ECO "C50"]
[WhiteElo "1352"]
[BlackElo "1634"]
[Annotator "NA"]
[PlyCount "113"]
[EventDate "2018.07.10"]
[EventType "team-tourn"]
[EventCountry "GRE"]
[SourceTitle "playchess.com"]
[Source "ChessBase"]
[SourceQuality "1"]
[TimeControl "40/5400+30:1800+30"]

1. e4 {[%emt 0:00:00]} e5 {[%emt 0:00:00]} 2. Nf3 {[%emt 0:00:00]} Nc6 {[%emt 0:00:00]} 3. Bc4 {[%emt 0:00:00]} Bc5 {[%emt 0:00:00]} 4. d3 {[%emt 0:00:00]} Nf6 {[%emt 0:00:00]} 5. c3 {[%emt 0:00:19]} d6 {[%emt 0:01:01]} 6. a4 {[%emt 0:00:28]} a5 {[%emt 0:00:30]} 7. h3 {[%emt 0:00:20]} O-O {[%emt 0:01:15]} 8. O-O {[%emt 0:00:55]} Be6 {[%emt 0:07:30]} 9. Bxe6 {[%emt 0:00:11]} fxe6 10. Qb3 {[%emt 0:07:16]} Qd7 {[%emt 0:00:41]} 11. Na3 {[%emt 0:01:34]} Nh5 {[%emt 0:46:21]} 12. Be3 {[%emt 0:32:17]} Ba7 {[%emt 0:02:31]} 13. Bxa7 {[%emt 0:00:30]} Rxa7 {[%emt 0:00:08]} 14. Nb5 {[%emt 0:11:17]} Raa8 {[%emt 0:00:30]} 15. d4 {[%emt 0:00:40]} exd4 {[%emt 0:22:08]} 16. Nbxd4 {[%emt 0:00:35]} Nd8 {[%emt 0:02:17]} 17. Ng5 {[%emt 0:10:37]} Re8 {[%emt 0:05:36]} 18. f4 {[%emt 0:15:54]} Kh8 {[%emt 0:01:59]} 19. f5 {[%emt 0:03:44]} e5 {[%emt 0:01:55]} 20. Nde6 {[%emt 0:00:57]} Nxe6 {[%emt 0:00:44]} 21. fxe6 {[%emt 0:01:10]} Qe7 {[%emt 0:00:17]} 22. Nf3 {[%emt 0:04:55]} b6 {[%emt 0:01:05]} 23. Qc4 {[%emt 0:01:05]} Nf4 {[%emt 0:00:48]} 24. b4 {[%emt 0:01:38]} Nxe6 {[%emt 0:00:25]} 25. Rfb1 {[%emt 0:02:07]} Qf7 {[%emt 0:01:36]} 26. bxa5 {[%emt 0:01:02]} Rxa5 {[%emt 0:00:09]} 27. Rb5 {[%emt 0:00:28]} Rea8 {[%emt 0:00:19]} 28. Rxa5 {[%emt 0:02:18]} Rxa5 {[%emt 0:00:11]} 29. Rf1 {[%emt 0:00:51]} Nd8 {[%emt 0:00:42]} 30. Qxf7 {[%emt 0:00:31]} Nxf7 31. Ng5 {[%emt 0:00:09]} h6 {[%emt 0:00:29]} 32. Nxf7+ {[%emt 0:00:07]} Kg8 {[%emt 0:00:13]} 33. Nd8 {[%emt 0:00:56]} Rxa4 {[%emt 0:00:20]} 34. Ne6 {[%emt 0:00:42]} Rc4 {[%emt 0:04:12]} 35. Rf8+ {[%emt 0:00:43]} Kh7 {[%emt 0:00:02]} 36. Rf7 {[%emt 0:00:08]} c6 {[%emt 0:01:05]} 37. Rxg7+ {[%emt 0:00:56]} Kh8 {[%emt 0:00:01]} 38. Rd7 {[%emt 0:00:43]} Rxc3 {[%emt 0:00:16]} 39. Rxd6 {[%emt 0:00:17]} b5 {[%emt 0:00:18]} 40. Rd8+ {[%emt 0:00:00]} Kh7 {[%emt 0:00:00]} 41. Rb8 {[%emt 0:04:06]} Kg6 {[%emt 0:18:14]} 42. Rb6 {[%emt 0:02:23]} Kh5 {[%emt 0:00:32]} 43. Nd8 {[%emt 0:00:51]} Kg5 {[%emt 0:00:01]} 44. Nxc6 {[%emt 0:01:07]} Rc5 {[%emt 0:00:37]} 45. Nd8 {[%emt 0:00:28]} Rc4 {[%emt 0:00:51]} 46. Ne6+ {[%emt 0:03:21]} Kh4 {[%emt 0:00:12]} 47. Rxb5 {[%emt 0:02:49]} Kg3 {[%emt 0:00:15]} 48. Rb3+ {[%emt 0:00:03]} Kh4 {[%emt 0:00:10]} 49. Re3 {[%emt 0:00:39]} Rc2 {[%emt 0:00:29]} 50. Kh2 {[%emt 0:04:15]} h5 {[%emt 0:00:13]} 51. Nf8 {[%emt 0:02:35]} Kg5 {[%emt 0:03:54]} 52. Rg3+ {[%emt 0:00:24]} Kf4 {[%emt 0:00:34]} 53. Ng6+ {[%emt 0:00:16]} Kxe4 {[%emt 0:00:08]} 54. Rg5 {[%emt 0:00:20]} Rc6 {[%emt 0:01:58]} 55. Nxe5 {[%emt 0:00:45]} Rc5 {[%emt 0:00:14]} 56. Rxh5 {[%emt 0:00:08]} Kf4 {[%emt 0:00:18]} 57. Nd3+ {[%emt 0:00:05]} 1-0

[Event "46th GRE-chT Premier 2018"]
[Site "Rio Achaia"]
[Date "2018.07.10"]
[Round "1"]
[White "Bania, Eleni"]
[Black "Psofimi, Milia"]
[Result "0-1"]
[ECO "C27"]
[WhiteElo "1349"]
[BlackElo "1580"]
[Annotator "NA"]
[PlyCount "60"]
[EventDate "2018.07.10"]
[EventType "team-tourn"]
[EventCountry "GRE"]
[SourceTitle "playchess.com"]
[Source "ChessBase"]
[SourceQuality "1"]
[TimeControl "40/5400+30:1800+30"]

1. e4 {[%emt 0:00:00]} e5 {[%emt 0:00:00]} 2. Nc3 {[%emt 0:00:00]} Nf6 {[%emt 0:00:00]} 3. Bc4 {[%emt 0:00:00]} Nxe4 {[%emt 0:00:11]} 4. Qh5 {[%emt 0:05:31]} Nd6 {[%emt 0:00:29]} 5. Bb3 {[%emt 0:03:35]} Be7 {[%emt 0:00:50]} 6. Qxe5 {[%emt 0:16:11]} O-O {[%emt 0:00:57]} 7. Nge2 {[%emt 0:06:36]} Bf6 {[%emt 0:09:13]} 8. Qh5 {[%emt 0:02:12]} g6 {[%emt 0:12:36]} 9. Qf3 {[%emt 0:03:30]} Nc6 {[%emt 0:07:26]} 10. Nd5 {[%emt 0:12:45]} Bg7 {[%emt 0:05:21]} 11. h4 {[%emt 0:02:07]} Re8 {[%emt 0:35:16]} 12. O-O {[%emt 0:07:33]} Nf5 {[%emt 0:04:56]} 13. g3 {[%emt 0:17:27]} Ne5 {[%emt 0:03:34]} 14. Qg2 {[%emt 0:02:29]} c6 {[%emt 0:03:49]} 15. Ne3 {[%emt 0:04:07]} d5 {[%emt 0:01:01]} 16. Nxf5 {[%emt 0:02:48]} Bxf5 {[%emt 0:00:12]} 17. Nd4 {[%emt 0:01:57]} Bd7 {[%emt 0:00:19]} 18. Nf3 {[%emt 0:02:30]} Qc8 {[%emt 0:02:55]} 19. Rd1 {[%emt 0:03:08]} Nxf3+ {[%emt 0:01:32]} 20. Kh1 {[%emt 0:00:27]} Bg4 {[%emt 0:03:11]} 21. Qf1 {[%emt 0:01:35]} Nd4 {[%emt 0:02:46]} 22. Re1 {[%emt 0:00:18]} Be2 {[%emt 0:00:34]} 23. Rxe2 {[%emt 0:00:48]} Nxe2 {[%emt 0:00:25]} 24. c3 {[%emt 0:00:20]} Nxc1 {[%emt 0:00:41]} 25. Rxc1 {[%emt 0:00:04]} Qe6 {[%emt 0:00:34]} 26. Qg2 {[%emt 0:01:03]} Qe4 {[%emt 0:00:14]} 27. f3 {[%emt 0:01:13]} Qe2 {[%emt 0:00:12]} 28. Qh3 {[%emt 0:00:18]} Qxf3+ {[%emt 0:00:16]} 29. Kg1 {[%emt 0:00:05]} Qd3 {[%emt 0:01:23]} 30. Rf1 {[%emt 0:00:25]} Re7 {[%emt 0:00:59]} 0-1

[Event "46th GRE-chT Premier 2018"]
[Site "Rio Achaia"]
[Date "2018.07.10"]
[Round "1"]
[White "Ilia, Anastasia"]
[Black "Grammatikaki, Aggeliki"]
[Result "0-1"]
[ECO "B40"]
[WhiteElo "1348"]
[BlackElo "1679"]
[Annotator "NA"]
[PlyCount "36"]
[EventDate "2018.07.10"]
[EventType "team-tourn"]
[EventCountry "GRE"]
[SourceTitle "playchess.com"]
[Source "ChessBase"]
[SourceQuality "1"]
[TimeControl "40/5400+30:1800+30"]

1. e4 {[%emt 0:00:00]} c5 {[%emt 0:00:00]} 2. Nf3 {[%emt 0:00:00]} e6 {[%emt 0:00:00]} 3. c3 {[%emt 0:00:00]} d5 {[%emt 0:00:00]} 4. exd5 {[%emt 0:03:41]} Qxd5 {[%emt 0:00:34]} 5. d4 {[%emt 0:07:32]} Nc6 {[%emt 0:02:54]} 6. Bd3 {[%emt 0:08:11]} Bd7 {[%emt 0:12:02]} 7. Be3 {[%emt 0:12:03]} cxd4 {[%emt 0:08:56]} 8. cxd4 {[%emt 0:01:40]} Nb4 {[%emt 0:10:36]} 9. Nc3 {[%emt 0:04:44]} Nxd3+ {[%emt 0:00:31]} 10. Qxd3 {[%emt 0:00:22]} Bb4 {[%emt 0:05:04]} 11. Bd2 {[%emt 0:07:21]} Bxc3 {[%emt 0:08:13]} 12. Bxc3 {[%emt 0:10:51]} Nf6 {[%emt 0:07:00]} 13. Qe3 {[%emt 0:06:08]} Bb5 {[%emt 0:10:36]} 14. Bb4 {[%emt 0:10:28]} Rc8 {[%emt 0:10:25]} 15. Rc1 {[%emt 0:04:14]} Rxc1+ {[%emt 0:01:29]} 16. Qxc1 {[%emt 0:00:05]} Qe4+ {[%emt 0:00:06]} 17. Qe3 {[%emt 0:02:37]} Qb1+ {[%emt 0:00:15]} 18. Kd2 {[%emt 0:00:08]} Ne4+ {[%emt 0:00:24]} 0-1

[Event "46th GRE-chT Premier 2018"]
[Site "Rio Achaia"]
[Date "2018.07.10"]
[Round "1"]
[White "Paraskakis, Filippos"]
[Black "Mplitsa, Artemis"]
[Result "1/2-1/2"]
[ECO "D43"]
[WhiteElo "1344"]
[BlackElo "1182"]
[Annotator "NA"]
[PlyCount "60"]
[EventDate "2018.07.10"]
[EventType "team-tourn"]
[EventCountry "GRE"]
[SourceTitle "playchess.com"]
[Source "ChessBase"]
[SourceQuality "1"]
[TimeControl "40/5400+30:1800+30"]

1. d4 {[%emt 0:00:00]} d5 {[%emt 0:00:00]} 2. c4 {[%emt 0:00:00]} c6 {[%emt 0:00:00]} 3. Nf3 {[%emt 0:00:00]} Nf6 {[%emt 0:00:00]} 4. Nc3 {[%emt 0:00:00]} e6 {[%emt 0:00:10]} 5. cxd5 {[%emt 0:00:11]} exd5 {[%emt 0:00:55]} 6. Bg5 {[%emt 0:00:08]} Be7 {[%emt 0:01:20]} 7. e3 {[%emt 0:01:10]} Nbd7 {[%emt 0:01:56]} 8. Bd3 {[%emt 0:00:16]} O-O {[%emt 0:03:23]} 9. Qc2 {[%emt 0:00:22]} h6 {[%emt 0:00:37]} 10. Bh4 {[%emt 0:01:44]} Re8 {[%emt 0:05:04]} 11. O-O {[%emt 0:00:15]} Ne4 {[%emt 0:22:09]} 12. Bxe7 {[%emt 0:04:36]} Qxe7 {[%emt 0:00:15]} 13. Nd2 {[%emt 0:03:03]} Nxd2 {[%emt 0:03:25]} 14. Qxd2 {[%emt 0:03:48]} Nf6 {[%emt 0:02:02]} 15. e4 {[%emt 0:17:39]} dxe4 {[%emt 0:05:34]} 16. Nxe4 {[%emt 0:00:28]} Nxe4 {[%emt 0:00:34]} 17. Bxe4 {[%emt 0:00:06]} Bd7 {[%emt 0:01:34]} 18. Rfe1 {[%emt 0:00:47]} Qd6 {[%emt 0:01:56]} 19. Rad1 {[%emt 0:05:32]} Be6 {[%emt 0:04:18]} 20. Qc2 {[%emt 0:12:51]} Rad8 {[%emt 0:07:24]} 21. Re3 {[%emt 0:06:21]} Rd7 {[%emt 0:06:43]} 22. h3 {[%emt 0:18:36]} Red8 {[%emt 0:03:55]} 23. Bf5 {[%emt 0:02:28]} Bxf5 {[%emt 0:02:03]} 24. Qxf5 {[%emt 0:00:05]} Qd5 {[%emt 0:02:17]} 25. Re5 {[%emt 0:01:58]} Qd6 {[%emt 0:06:47]} 26. Rde1 {[%emt 0:02:18]} g6 {[%emt 0:01:34]} 27. Qg4 {[%emt 0:04:13]} Qxd4 {[%emt 0:03:28]} 28. Re8+ {[%emt 0:01:13]} Rxe8 {[%emt 0:00:44]} 29. Rxe8+ {[%emt 0:00:05]} Kg7 {[%emt 0:00:13]} 30. Qxd4+ {[%emt 0:01:27]} Rxd4 {[%emt 0:00:13]} 1/2-1/2

[Event "46th GRE-chT Premier 2018"]
[Site "Rio Achaia"]
[Date "2018.07.10"]
[Round "1"]
[White "Tounta, Nefeli"]
[Black "Nikolaidou, Maria"]
[Result "0-1"]
[ECO "E90"]
[WhiteElo "1344"]
[BlackElo "1239"]
[Annotator "NA"]
[PlyCount "94"]
[EventDate "2018.07.10"]
[EventType "team-tourn"]
[EventCountry "GRE"]
[SourceTitle "playchess.com"]
[Source "ChessBase"]
[SourceQuality "1"]
[TimeControl "40/5400+30:1800+30"]

1. d4 {[%emt 0:00:00]} Nf6 {[%emt 0:00:00]} 2. c4 {[%emt 0:00:00]} g6 {[%emt 0:00:00]} 3. Nc3 {[%emt 0:00:10]} Bg7 {[%emt 0:00:00]} 4. e4 {[%emt 0:00:31]} d6 {[%emt 0:00:10]} 5. Nf3 {[%emt 0:04:19]} O-O {[%emt 0:00:19]} 6. h3 {[%emt 0:00:20]} e5 {[%emt 0:00:56]} 7. d5 {[%emt 0:00:23]} Nbd7 {[%emt 0:02:34]} 8. Be3 {[%emt 0:02:48]} a5 {[%emt 0:00:27]} 9. Bd3 {[%emt 0:08:32]} Nc5 {[%emt 0:08:11]} 10. Bc2 {[%emt 0:17:55]} Nh5 {[%emt 0:15:27]} 11. Nh2 {[%emt 0:18:06]} Qh4 {[%emt 0:15:23]} 12. Qd2 {[%emt 0:05:01]} Nf4 {[%emt 0:06:59]} 13. Rg1 {[%emt 0:07:24]} Bd7 {[%emt 0:22:08]} 14. Nf3 {[%emt 0:02:01]} Qf6 {[%emt 0:02:25]} 15. h4 {[%emt 0:08:45]} Nxg2+ {[%emt 0:04:50]} 16. Rxg2 {[%emt 0:00:25]} Qxf3 {[%emt 0:00:18]} 17. Rh2 {[%emt 0:01:35]} Qh5 {[%emt 0:04:59]} 18. Ne2 {[%emt 0:05:34]} Qg4 {[%emt 0:03:03]} 19. Ng3 {[%emt 0:01:09]} Nxe4 {[%emt 0:02:16]} 20. Bxe4 {[%emt 0:02:25]} f5 {[%emt 0:00:31]} 21. Bh6 {[%emt 0:08:24]} f4 {[%emt 0:02:16]} 22. Nf1 {[%emt 0:03:15]} Bxh6 {[%emt 0:01:10]} 23. f3 {[%emt 0:00:22]} Qh5 {[%emt 0:00:15]} 24. O-O-O {[%emt 0:00:24]} Bf5 {[%emt 0:02:25]} 25. Bxf5 {[%emt 0:00:39]} Qxf5 {[%emt 0:00:41]} 26. Qe2 {[%emt 0:00:22]} Rae8 {[%emt 0:00:54]} 27. Nd2 {[%emt 0:00:09]} Re7 {[%emt 0:01:13]} 28. Rg1 {[%emt 0:00:23]} Qh5 {[%emt 0:00:46]} 29. Ne4 {[%emt 0:00:25]} Kh8 {[%emt 0:01:23]} 30. Ng5 {[%emt 0:00:34]} Rfe8 {[%emt 0:01:01]} 31. Ne6 {[%emt 0:00:23]} Qf5 {[%emt 0:00:51]} 32. Rhg2 e4 {[%emt 0:01:04]} 33. Qxe4 {[%emt 0:02:59]} Qxe4 {[%emt 0:00:05]} 34. fxe4 {[%emt 0:00:06]} f3+ {[%emt 0:00:06]} 35. Rg5 {[%emt 0:00:00]} Bxg5+ {[%emt 0:00:00]} 36. hxg5 {[%emt 0:00:20]} Rf7 {[%emt 0:00:00]} 37. Rf1 {[%emt 0:00:16]} Ree7 {[%emt 0:00:44]} 38. Kd2 {[%emt 0:00:30]} c6 {[%emt 0:01:03]} 39. Ke3 {[%emt 0:01:29]} cxd5 {[%emt 0:00:52]} 40. cxd5 {[%emt 0:00:00]} Re8 {[%emt 0:00:00]} 41. Nd4 {[%emt 0:08:46]} Kg7 {[%emt 0:06:19]} 42. Ne6+ {[%emt 0:08:09]} Kg8 {[%emt 0:01:23]} 43. Rxf3 {[%emt 0:05:07]} Rxf3+ {[%emt 0:00:21]} 44. Kxf3 {[%emt 0:00:06]} Rc8 {[%emt 0:01:10]} 45. e5 {[%emt 0:04:08]} dxe5 {[%emt 0:05:17]} 46. d6 {[%emt 0:01:18]} Kf7 {[%emt 0:03:06]} 47. d7 {[%emt 0:00:09]} Rg8 {[%emt 0:00:13]} 0-1

[Event "46th GRE-chT Premier 2018"]
[Site "Rio Achaia"]
[Date "2018.07.10"]
[Round "1"]
[White "Stounos, Nikolaos"]
[Black "Amaxopoulos, Christos"]
[Result "1-0"]
[ECO "B23"]
[WhiteElo "1343"]
[BlackElo "1180"]
[Annotator "NA"]
[PlyCount "45"]
[EventDate "2018.07.10"]
[EventType "team-tourn"]
[EventCountry "GRE"]
[SourceTitle "playchess.com"]
[Source "ChessBase"]
[SourceQuality "1"]
[TimeControl "40/5400+30:1800+30"]

1. e4 {[%emt 0:00:00]} c5 {[%emt 0:00:00]} 2. Nc3 {[%emt 0:00:00]} a6 {[%emt 0:00:00]} 3. g3 {[%emt 0:00:00]} b5 {[%emt 0:00:00]} 4. Bg2 {[%emt 0:00:00]} Bb7 {[%emt 0:00:00]} 5. d3 {[%emt 0:00:00]} e6 {[%emt 0:00:04]} 6. Nh3 {[%emt 0:00:04]} Nf6 {[%emt 0:00:16]} 7. O-O {[%emt 0:00:10]} Be7 {[%emt 0:00:21]} 8. f4 {[%emt 0:00:11]} d5 {[%emt 0:00:08]} 9. f5 {[%emt 0:03:38]} d4 {[%emt 0:07:00]} 10. Ne2 {[%emt 0:00:25]} e5 {[%emt 0:00:13]} 11. Nf2 {[%emt 0:02:17]} Nbd7 {[%emt 0:00:22]} 12. g4 {[%emt 0:00:46]} Nb6 {[%emt 0:00:35]} 13. Ng3 {[%emt 0:00:45]} Rc8 {[%emt 0:06:05]} 14. g5 {[%emt 0:02:17]} Nfd7 {[%emt 0:00:09]} 15. h4 {[%emt 0:02:02]} h6 16. Qh5 {[%emt 0:03:18]} c4 {[%emt 0:04:32]} 17. f6 {[%emt 0:12:51]} Bf8 {[%emt 0:15:39]} 18. fxg7 {[%emt 0:17:26]} Bxg7 {[%emt 0:00:08]} 19. Nf5 {[%emt 0:01:40]} Bf8 {[%emt 0:00:26]} 20. Ng4 {[%emt 0:01:10]} Qc7 {[%emt 0:03:10]} 21. Ng7+ {[%emt 0:06:48]} Kd8 {[%emt 0:04:23]} 22. Qxf7 {[%emt 0:02:13]} Be7 {[%emt 0:00:25]} 23. Ne6# {[%emt 0:00:16]} 1-0

[Event "46th GRE-chT Premier 2018"]
[Site "Rio Achaia"]
[Date "2018.07.10"]
[Round "1"]
[White "Vlachos, Georgios"]
[Black "Stoimenidis, Dimitrios"]
[Result "1/2-1/2"]
[ECO "C59"]
[WhiteElo "1334"]
[BlackElo "1527"]
[Annotator "NA"]
[PlyCount "105"]
[EventDate "2018.07.10"]
[EventType "team-tourn"]
[EventCountry "GRE"]
[SourceTitle "playchess.com"]
[Source "ChessBase"]
[SourceQuality "1"]
[TimeControl "40/5400+30:1800+30"]

1. e4 {[%emt 0:00:00]} e5 {[%emt 0:00:00]} 2. Nf3 {[%emt 0:00:00]} Nc6 {[%emt 0:00:00]} 3. Bc4 {[%emt 0:00:26]} Nf6 {[%emt 0:00:00]} 4. Ng5 {[%emt 0:00:30]} d5 {[%emt 0:00:21]} 5. exd5 {[%emt 0:00:20]} Na5 {[%emt 0:00:15]} 6. Bb5+ {[%emt 0:00:33]} c6 {[%emt 0:00:10]} 7. dxc6 {[%emt 0:00:17]} bxc6 {[%emt 0:00:02]} 8. Be2 {[%emt 0:00:20]} h6 {[%emt 0:02:36]} 9. Nh3 {[%emt 0:00:20]} Be7 {[%emt 0:06:41]} 10. d3 {[%emt 0:01:25]} O-O {[%emt 0:01:05]} 11. O-O {[%emt 0:00:57]} Be6 {[%emt 0:04:26]} 12. Nc3 {[%emt 0:04:24]} Qc7 {[%emt 0:16:23]} 13. Be3 {[%emt 0:03:19]} Rfd8 {[%emt 0:05:36]} 14. Qe1 {[%emt 0:08:21]} Nd5 {[%emt 0:20:55]} 15. Bd2 {[%emt 0:06:03]} Nb7 {[%emt 0:03:31]} 16. f4 {[%emt 0:08:19]} exf4 {[%emt 0:13:19]} 17. Nxf4 {[%emt 0:01:34]} Bd6 {[%emt 0:02:56]} 18. Qg3 {[%emt 0:04:03]} Nxf4 {[%emt 0:08:00]} 19. Bxf4 {[%emt 0:02:03]} Qb6+ {[%emt 0:02:41]} 20. d4 {[%emt 0:05:54]} Qxd4+ {[%emt 0:02:53]} 21. Kh1 {[%emt 0:00:19]} Bxf4 {[%emt 0:02:40]} 22. Rxf4 {[%emt 0:00:33]} Qe5 {[%emt 0:01:23]} 23. Qf2 {[%emt 0:04:02]} Qc5 {[%emt 0:01:14]} 24. Qf3 {[%emt 0:02:08]} Qb6 {[%emt 0:01:16]} 25. Na4 {[%emt 0:05:31]} Qc7 {[%emt 0:00:32]} 26. Rf1 {[%emt 0:02:17]} Rd7 {[%emt 0:00:51]} 27. Nc3 {[%emt 0:04:37]} Nd6 {[%emt 0:00:55]} 28. b3 {[%emt 0:00:55]} Re8 {[%emt 0:00:22]} 29. Bd3 {[%emt 0:00:32]} Rde7 {[%emt 0:00:54]} 30. Ne4 {[%emt 0:03:52]} Nxe4 {[%emt 0:01:03]} 31. Bxe4 {[%emt 0:00:14]} Rc8 {[%emt 0:00:47]} 32. c4 {[%emt 0:01:49]} Rd7 {[%emt 0:00:45]} 33. Bb1 {[%emt 0:02:33]} Qe5 {[%emt 0:00:59]} 34. Qf2 {[%emt 0:04:11]} Rcd8 {[%emt 0:00:46]} 35. Qc2 {[%emt 0:00:51]} f5 {[%emt 0:00:36]} 36. R4f2 {[%emt 0:01:39]} g6 {[%emt 0:00:30]} 37. Re2 {[%emt 0:01:01]} Qf6 {[%emt 0:00:30]} 38. Qc1 {[%emt 0:03:55]} Kg7 {[%emt 0:00:22]} 39. g4 {[%emt 0:01:13]} Rf8 {[%emt 0:00:34]} 40. gxf5 {[%emt 0:00:00]} Bxf5 {[%emt 0:00:00]} 41. Bxf5 {[%emt 0:04:05]} gxf5 {[%emt 0:01:19]} 42. Ref2 {[%emt 0:02:56]} Qe5 {[%emt 0:08:10]} 43. Re1 {[%emt 0:02:28]} Qf6 {[%emt 0:07:14]} 44. Qe3 {[%emt 0:02:16]} Qd6 {[%emt 0:08:26]} 45. Rg2+ {[%emt 0:05:53]} Kh7 {[%emt 0:00:50]} 46. Reg1 {[%emt 0:04:18]} Re7 {[%emt 0:04:42]} 47. Qc3 {[%emt 0:01:35]} Rff7 {[%emt 0:02:18]} 48. Rg6 {[%emt 0:01:03]} Qf4 {[%emt 0:01:24]} 49. Rg8 {[%emt 0:08:52]} Qe4+ {[%emt 0:00:20]} 50. R1g2 {[%emt 0:02:22]} Qb1+ {[%emt 0:00:15]} 51. Rg1 {[%emt 0:00:12]} Qe4+ {[%emt 0:00:04]} 52. R1g2 {[%emt 0:00:45]} Qb1+ {[%emt 0:00:35]} 53. Rg1 {[%emt 0:00:07]} 1/2-1/2